bitfinex/quotes_SOLUSD_20241007
["timestamp","ask_amount","ask_price","bid_price","bid_amount"]
[1728320838736,6.1686,149.32,149.22,6.7012]
[1728320838737,6.6998,149.26,149.22,6.7012]
[1728320838935,23.776884,149.25,149.22,6.7012]
[1728320839462,23.776884,149.3,149.22,1.34022345]
[1728320839649,23.776884,149.27,149.24,6.7004]
[1728320840650,30.476084,149.27,149.23,23.4531]
[1728320840852,6.6997,149.26,149.22,6.7013]
[1728320841061,30.476984,149.25,149.21,6.7018]
[1728320841647,6.7006,149.24,149.2,23.4575]
[1728320842155,23.776884,149.23,149.2,16.7552]
[1728320842470,30.477984,149.23,149.19,6.7026]
[1728320845347,30.477984,149.23,149.18,6.7031]
[1728320845549,30.477984,149.23,149.19,6.7025]
[1728320846464,23.776884,149.21,149.18,6.7031]
[1728320846944,23.776884,149.21,149.17,39.09590048]
[1728320846945,23.776884,149.21,149.16,3.45568865]
[1728320847148,23.776884,149.2,149.16,3.45568865]
[1728320847464,23.776884,149.22,149.21,6.7019]
[1728320847970,23.776884,149.22,149.19,16.7567]
[1728320848543,23.776884,149.22,149.19,23.4592]
[1728320848743,30.478384,149.22,149.19,16.7567]
[1728320850647,23.776884,149.22,149.19,16.7567]
[1728320851343,23.776884,149.22,149.19,23.4594]
[1728320851846,23.776884,149.22,149.18,6.7031]
[1728320851847,30.478784,149.22,149.18,6.7031]
[1728320852439,30.478784,149.22,149.19,12.08960584]
[1728320854047,23.776884,149.22,149.19,18.79230584]
[1728320854563,6.7007,149.24,149.2,18.79190584]
[1728320855657,23.776884,149.23,149.2,18.79190584]
[1728320855875,23.776884,149.23,149.18,16.7579]
[1728320856076,30.478084,149.23,149.19,18.79240584]
[1728320857590,23.776884,149.23,149.19,12.08960584]
[1728320857870,23.776884,149.23,149.2,6.7023]
[1728320859072,30.477884,149.23,149.19,18.79220584]
[1728320860057,23.776884,149.23,149.2,6.7019]
[1728320860257,23.776884,149.24,149.21,6.7018]
[1728320860471,6.3838,149.26,149.21,12.08960584]
[1728320860773,6.7003,149.25,149.21,18.79140584]
[1728320862273,23.776884,149.24,149.21,18.79140584]
[1728320865454,23.776884,149.24,149.2,16.7557]
[1728320865673,30.477584,149.24,149.2,23.4578]
[1728320865971,23.776884,149.25,149.22,16.7531]
[1728320866175,23.776884,149.26,149.22,16.7531]
[1728320866763,23.776884,149.26,149.23,6.7007]
[1728320868063,30.476584,149.26,149.23,6.7007]
[1728320868256,30.476584,149.26,149.22,23.4544]
[1728320869672,6.7002,149.25,149.22,23.4544]
[1728320869876,23.776884,149.24,149.22,23.4544]
[1728320870266,23.776884,149.24,149.22,16.7531]
[1728320871575,23.776884,149.24,149.21,18.79150584]
[1728320871771,30.477484,149.24,149.21,18.79150584]
[1728320872076,23.776884,149.24,149.21,18.79150584]
[1728320873197,23.776884,149.24,149.19,16.7561]
[1728320873372,23.776884,149.24,149.18,15.54529449]
[1728320873691,6.702,149.21,149.18,12.08960584]
[1728320873867,6.7016,149.22,149.18,18.79280584]
[1728320874361,23.776884,149.21,149.18,18.79280584]
[1728320876683,30.478884,149.21,149.18,18.79280584]
[1728320877271,30.478884,149.21,149.18,12.08960584]
[1728320877684,30.478884,149.21,149.17,10.15918865]
[1728320878096,23.776884,149.19,149.16,39.00909449]
[1728320878278,23.776884,149.19,149.16,32.30519449]
[1728320878695,23.776884,149.19,149.16,39.00909449]
[1728320878870,23.776884,149.2,149.17,22.24889449]
[1728320880122,23.776884,149.2,149.18,6.7032]
[1728320880399,23.776884,149.21,149.18,18.79280584]
[1728320880696,23.776884,149.21,149.19,6.7028]
[1728320880881,6.5042,149.24,149.19,6.7028]
[1728320880882,23.776884,149.22,149.19,6.7028]
[1728320881405,23.776884,149.22,149.19,18.79240584]
[1728320882074,23.776884,149.22,149.19,6.7028]
[1728320882675,30.478484,149.22,149.18,39.00649449]
[1728320883578,6.702,149.21,149.18,26.91688865]
[1728320883901,23.776884,149.2,149.18,39.00649449]
[1728320884083,23.776884,149.2,149.18,35.55080584]
[1728320884290,23.776884,149.2,149.18,12.08960584]
[1728320884593,23.776884,149.2,149.17,12.08960584]
[1728320884897,30.479484,149.2,149.17,3.45568865]
[1728320885192,30.479484,149.2,149.16,10.15968865]
[1728320886197,23.776884,149.2,149.16,3.45568865]
[1728320886497,23.776884,149.17,149.16,3.45568865]
[1728320886683,30.480584,149.17,149.15,3.45568865]
[1728320887000,30.481084,149.16,149.15,3.45568865]
[1728320887177,23.776884,149.15,149.14,3.45568865]
[1728320887494,23.776884,149.15,149.13,3.45568865]
[1728320888385,23.776884,149.15,149.12,26.92598865]
[1728320888874,23.776884,149.16,149.12,26.92598865]
[1728320889277,23.776884,149.16,149.12,16.7645]
[1728320889471,23.776884,149.16,149.13,6.7054]
[1728320890669,30.481284,149.16,149.12,23.4704]
[1728320890875,23.776884,149.16,149.13,6.7055]
[1728320891786,23.776884,149.16,149.12,16.7645]
[1728320891992,23.776884,149.14,149.12,16.7645]
[1728320893277,23.776884,149.14,149.11,6.8061]
[1728320898101,30.482084,149.14,149.11,0.1]
[1728320900284,23.776884,149.14,149.11,0.1]
[1728320900602,23.776884,149.12,149.11,0.1]
[1728320902011,66.444084,149.12,149.11,0.1]
[1728320902382,6.7088,149.06,149.02,7.54079]
[1728320902688,6.7088,149.06,149.02,0.83049]
[1728320902893,6.7088,149.06,149.02,7.54089]
[1728320903294,20.0,149.09,149.02,0.83049]
[1728320903803,6.2835,149.08,149.02,0.83049]
[1728320904106,6.7096,149.04,149.02,0.83049]
[1728320904503,23.776884,149.03,149.02,0.83049]
[1728320905388,30.486884,149.03,149.02,0.83049]
[1728320905900,23.776884,149.03,149.02,0.83049]
[1728320906616,30.486884,149.03,149.02,0.83049]
[1728320907814,56.906984,149.03,149.02,0.83049]
[1728320908018,56.906984,149.03,148.91,0.1]
[1728320908019,16.7764,149.02,148.91,0.1]
[1728320908218,6.7132,148.96,148.91,23.6036]
[1728320909318,6.7137,148.95,148.91,23.6039]
[1728320909519,26.7132,148.96,148.91,23.6039]
[1728320910024,26.7132,148.96,148.91,0.1]
[1728320910025,23.776884,148.95,148.91,0.1]
[1728320910324,30.491884,148.92,148.91,0.1]
[1728320910991,23.776884,148.92,148.91,0.1]
[1728320911398,15.4043,148.97,148.93,6.7141]
[1728320911600,15.4043,148.97,148.91,16.888]
[1728320911796,22.1174,148.97,148.92,6.7149]
[1728320912197,15.4043,148.97,148.91,16.888]
[1728320912404,15.4043,148.97,148.94,6.7136]
[1728320913240,16.7743,149.04,148.95,16.7834]
[1728320913241,16.3206,149.01,148.95,16.7834]
[1728320913519,16.3206,149.01,148.94,1.34286806]
[1728320913520,16.3206,149.01,148.94,6.7137]
[1728320913720,6.7123,148.98,148.93,6.7144]
[1728320914812,23.776884,148.97,148.93,6.7144]
[1728320915004,23.776884,148.97,148.94,6.7139]
[1728320918033,20.0,149.0,148.94,16.7846]
[1728320918224,23.0316,149.01,148.94,16.7846]
[1728320918225,23.0316,149.01,148.97,6.7127]
[1728320918610,23.0316,149.01,148.96,6.7131]
[1728320918820,20.0,149.02,148.96,16.7824]
[1728320919027,6.7111,149.01,148.97,6.7127]
[1728320919224,6.7111,149.01,148.96,23.4956]
[1728320919528,6.7111,149.01,148.96,16.7824]
[1728320919728,26.7105,149.02,148.97,6.7124]
[1728320920030,26.7105,149.02,148.96,16.7824]
[1728320920239,20.0,149.02,148.98,6.7119]
[1728320920908,12.9607,149.07,149.01,6.7109]
[1728320921231,16.2573,149.09,149.04,16.7732]
[1728320921407,6.7081,149.08,149.04,16.7732]
[1728320921727,6.7083,149.07,149.02,6.7103]
[1728320922311,16.2573,149.09,149.03,6.71]
[1728320922312,20.0,149.08,149.03,6.71]
[1728320922509,6.7078,149.08,149.03,6.71]
[1728320923522,6.7083,149.07,149.03,6.71]
[1728320923724,23.776884,149.06,149.03,6.71]
[1728320923925,23.776884,149.06,149.01,16.7767]
[1728320924138,23.776884,149.04,149.01,16.7767]
[1728320924635,23.776884,149.04,148.99,6.7118]
[1728320925416,23.776884,149.04,148.98,23.4922]
[1728320925631,23.776884,149.01,148.98,23.4922]
[1728320928905,30.487884,149.01,148.98,16.7801]
[1728320929110,30.487884,149.01,148.97,6.7126]
[1728320929926,23.776884,149.01,148.97,6.7126]
[1728320930931,23.776884,149.01,148.98,6.7122]
[1728320931124,43.776884,149.04,148.98,1.3424545]
[1728320931328,43.776884,149.04,148.99,16.7788]
[1728320931627,50.486584,149.04,148.99,23.4905]
[1728320931830,6.7102,149.03,148.99,23.4905]
[1728320932345,23.776884,149.02,148.99,23.4905]
[1728320932530,23.776884,149.03,148.96,16.7825]
[1728320932731,6.7115,149.0,148.96,23.4953]
[1728320933325,6.711,149.01,148.97,6.7127]
[1728320933523,23.776884,149.01,148.96,16.7825]
[1728320933825,23.776884,149.01,148.99,6.7118]
[1728320934035,6.7101,149.03,149.0,6.7113]
[1728320934036,23.776884,149.03,149.0,6.7113]
[1728320934223,23.776884,149.03,149.01,6.7108]
[1728320934422,23.776884,149.03,149.0,23.4894]
[1728320934835,6.7091,149.05,149.01,6.7108]
[1728320936244,23.776884,149.04,149.01,6.7108]
[1728320937541,6.7091,149.05,149.01,6.7108]
[1728320937733,26.7088,149.06,149.02,6.7103]
[1728320938741,26.7084,149.07,149.03,6.71]
[1728320939328,23.776884,149.06,149.03,6.71]
[1728320939947,23.776884,149.06,149.02,1.34200552]
[1728320940138,30.485584,149.06,149.02,6.7103]
[1728320941054,6.7096,149.04,149.0,23.4893]
[1728320941223,23.776884,149.06,149.0,16.7782]
[1728320941550,6.7098,149.04,149.0,23.4892]
[1728320941726,6.7098,149.04,149.01,6.7108]
[1728320941727,23.776884,149.04,149.01,6.7108]
[1728320941923,23.776884,149.04,149.01,8.05281545]
[1728320942122,23.776884,149.04,149.02,6.7104]
[1728320942342,23.776884,149.05,149.02,6.7104]
[1728320943446,30.486084,149.05,149.01,6.7108]
[1728320944834,30.485684,149.06,149.02,6.7104]
[1728320949755,30.485684,149.06,149.01,1.34195328]
[1728320950056,30.485684,149.06,149.02,23.4863]
[1728320950253,6.7092,149.05,149.01,6.7107]
[1728320950466,6.7096,149.04,149.0,6.7112]
[1728320950627,30.486984,149.03,148.99,23.4903]
[1728320950833,6.7108,149.02,148.98,6.7121]
[1728320951042,6.7109,149.01,148.98,6.7121]
[1728320951754,6.7109,149.01,148.96,16.7819]
[1728320951943,6.7109,149.01,148.97,6.7126]
[1728320952556,30.488284,149.0,148.96,23.4948]
[1728320952773,6.7114,149.0,148.96,23.4948]
[1728320953060,6.7121,148.99,148.95,6.7134]
[1728320953231,23.776884,148.98,148.95,6.7134]
[1728320953433,6.7128,148.97,148.93,23.5]
[1728320953652,16.7777,149.01,148.91,19.75398865]
[1728320953653,20.0,149.01,148.91,16.2983]
[1728320953861,20.0,149.01,148.92,6.7146]
[1728320953862,6.7132,148.96,148.92,6.7146]
[1728320954367,16.7801,148.99,148.92,6.7146]
[1728320954532,6.7128,148.97,148.93,6.7145]
[1728320955191,23.776884,148.97,148.93,6.7145]
[1728320957560,23.776884,148.97,148.94,6.7141]
[1728320958953,23.776884,148.97,148.94,8.0567792]
[1728320959341,30.489784,148.97,148.93,23.5001]
[1728320959544,23.776884,148.97,148.93,16.786]
[1728320959762,23.776884,148.97,148.94,6.714]
[1728320960562,6.7133,148.96,148.92,6.7146]
[1728320960856,6.7132,148.96,148.92,6.7146]
[1728320961063,23.776884,148.97,148.91,16.2983]
[1728320961265,30.489784,148.97,148.93,6.7145]
[1728320963243,6.7132,148.96,148.92,23.502]
[1728320963443,30.489784,148.97,148.93,6.7145]
[1728320968964,6.7136,148.96,148.92,23.5021]
[1728320969141,23.776884,148.97,148.91,0.1]
[1728320969347,6.7145,148.93,148.91,0.1]
[1728320970363,20.0,148.96,148.91,0.1]
[1728320970574,23.776884,148.93,148.91,0.1]
[1728320971561,6.7133,148.96,148.92,8.05753212]
[1728320971762,20.0,148.97,148.91,16.8883]
[1728320971947,26.713,148.97,148.93,6.7145]
[1728320972648,6.7124,148.98,148.94,6.714]
[1728320972848,6.713,148.97,148.93,23.5004]
[1728320973254,23.776884,148.96,148.93,23.5004]
[1728320974267,23.776884,148.96,148.93,16.7861]
[1728320974470,30.490184,148.96,148.93,16.7861]
[1728320974655,23.776884,148.96,148.91,0.1]
[1728320974857,30.490184,148.96,148.92,6.7149]
[1728320976358,23.776884,148.96,148.91,0.1]
[1728320976558,23.776884,148.94,148.91,6.8153]
[1728320977974,23.776884,148.95,148.92,8.05781586]
[1728320978353,6.7129,148.97,148.93,6.7145]
[1728320978552,23.776884,148.97,148.94,6.7141]
[1728320979461,30.489584,148.97,148.94,6.7141]
[1728320979862,30.489584,148.97,148.93,6.7144]
[1728320981066,6.7132,148.96,148.93,6.7144]
[1728320981282,6.7132,148.96,148.92,23.5022]
[1728320983081,23.776884,148.97,148.91,0.1]
[1728320983284,6.7141,148.94,148.91,0.1]
[1728320984357,6.7145,148.93,148.91,0.1]
[1728320985657,30.491884,148.92,148.91,0.1]
[1728320989256,50.491884,148.92,148.91,0.1]
[1728320990159,57.47914069,148.92,148.91,0.1]
[1728320992385,6.7168,148.88,148.83,21.10179]
[1728320992759,23.776884,148.87,148.83,21.10179]
[1728320993988,23.776884,148.87,148.84,6.7183]
[1728320995191,6.7168,148.88,148.84,6.7183]
[1728320995776,30.494084,148.87,148.83,23.5155]
[1728320996485,15.7938,148.9,148.85,6.7181]
[1728320996486,30.493284,148.89,148.85,6.7181]
[1728320998907,22.5097,148.9,148.86,6.7176]
[1728320999414,22.5097,148.9,148.85,16.795]
[1728320999415,6.7164,148.89,148.85,23.513]
[1728320999714,6.7164,148.89,148.85,16.795]
[1728320999888,6.7164,148.89,148.86,6.7177]
[1728321000595,15.7938,148.9,148.87,6.7172]
[1728321000798,26.7156,148.91,148.87,6.7172]
[1728321001516,20.0,148.91,148.85,16.795]
[1728321001717,6.716,148.9,148.86,6.7176]
[1728321003211,20.0,148.9,148.85,16.795]
[1728321003503,6.7164,148.89,148.85,23.513]
[1728321003669,6.7168,148.88,148.85,16.795]
[1728321003870,6.7168,148.88,148.84,6.7184]
[1728321004797,30.493384,148.89,148.85,6.7181]
[1728321005289,6.7169,148.88,148.84,23.5146]
[1728321006695,6.7176,148.87,148.83,6.7189]
[1728321006998,30.494384,148.87,148.83,6.719]
[1728321009295,6.7177,148.86,148.83,6.719]
[1728321010692,23.776884,148.87,148.83,6.719]
[1728321010980,30.494284,148.87,148.83,6.719]
[1728321011190,15.151,148.88,148.85,6.718]
[1728321011371,15.151,148.88,148.85,16.7951]
[1728321011574,15.151,148.88,148.85,23.513]
[1728321011777,15.151,148.88,148.85,16.7951]
[1728321011988,30.494284,148.87,148.84,12.14938443]
[1728321012289,30.494284,148.87,148.83,6.7187]
[1728321012597,6.7178,148.86,148.82,35.66648443]
[1728321013074,6.7182,148.85,148.82,16.7978]
[1728321013481,6.7187,148.84,148.81,0.1]
[1728321014183,6.7195,148.83,148.81,0.1]
[1728321014995,20.0,148.86,148.81,0.1]
[1728321015303,6.7186,148.84,148.81,0.1]
[1728321015902,23.776884,148.85,148.81,18.24308562]
[1728321016196,23.776884,148.85,148.82,6.7192]
[1728321017006,30.494984,148.85,148.82,6.7192]
[1728321017226,30.494984,148.85,148.81,23.6189]
[1728321017931,6.7181,148.85,148.81,23.6189]
[1728321018119,6.7192,148.83,148.81,0.1]
[1728321018417,6.7195,148.82,148.81,0.1]
[1728321020614,6.7192,148.83,148.81,0.1]
[1728321023039,40.571284,148.86,148.81,0.1]
[1728321023333,6.7187,148.84,148.81,0.1]
[1728321023719,20.0,148.85,148.82,6.7192]
[1728321023918,20.0,148.85,148.81,0.1]
[1728321024134,6.7177,148.86,148.82,16.7985]
[1728321024615,6.7186,148.85,148.81,6.8197]
[1728321024813,6.7186,148.84,148.81,0.1]
[1728321025440,6.7184,148.85,148.81,6.8199]
[1728321026569,20.0,148.85,148.81,30.39271786]
[1728321026711,20.0,148.87,148.81,30.39271786]
[1728321026712,26.7175,148.87,148.83,6.719]
[1728321027530,6.7177,148.86,148.82,6.7193]
[1728321027915,26.7183,148.85,148.81,35.76868443]
[1728321028438,26.7183,148.85,148.81,23.6193]
[1728321029622,26.7183,148.85,148.81,35.76868443]
[1728321032438,26.7183,148.85,148.81,23.6193]
[1728321036312,6.7189,148.84,148.81,0.1]
[1728321039321,6.7191,148.83,148.81,0.1]
[1728321039612,6.7195,148.82,148.81,0.1]
[1728321040505,6.7192,148.83,148.81,0.1]
[1728321041419,310.3874787,149.0,148.81,12.24938443]
[1728321041632,21.8682,148.88,148.84,6.7185]
[1728321041917,6.7177,148.86,148.82,6.7193]
[1728321042721,6.7177,148.86,148.82,8.06297763]
[1728321043417,6.7177,148.86,148.82,6.7193]
[1728321043802,6.7177,148.86,148.82,8.06297681]
[1728321043997,6.7177,148.86,148.82,6.7193]
[1728321044209,6.7177,148.86,148.82,8.06297576]
[1728321044413,6.7177,148.86,148.82,6.7193]
[1728321044620,6.7177,148.86,148.82,8.06297758]
[1728321044919,6.7177,148.86,148.82,1.34367758]
[1728321045109,6.7174,148.87,148.83,18.86838443]
[1728321045819,16.5945,148.91,148.85,12.14938443]
[1728321045994,6.7162,148.9,148.86,1.34341131]
[1728321046193,6.7162,148.9,148.85,12.14938443]
[1728321046194,6.7162,148.9,148.85,18.86738443]
[1728321046725,6.7163,148.89,148.85,18.86738443]
[1728321046898,6.7169,148.88,148.84,35.66428443]
[1728321047102,6.7169,148.88,148.84,23.5149]
[1728321049021,6.7173,148.87,148.83,6.719]
[1728321049222,23.776884,148.9,148.81,16.8993]
[1728321049427,6.7182,148.85,148.81,23.6189]
[1728321050112,23.776884,148.9,148.81,16.8993]
[1728321050310,6.7186,148.84,148.81,16.8993]
[1728321050919,6.7186,148.84,148.81,0.1]
[1728321051327,6.7191,148.83,148.81,0.1]
[1728321052004,6.7187,148.84,148.81,0.1]
[1728321052722,6.7182,148.85,148.81,8.16337038]
[1728321053823,6.7177,148.87,148.83,6.719]
[1728321054012,6.7177,148.87,148.83,8.06260958]
[1728321054218,6.7177,148.86,148.82,35.66718443]
[1728321054421,6.98833385,148.9,148.82,28.94788443]
[1728321054622,6.7177,148.86,148.82,35.66708443]
[1728321055104,6.7177,148.86,148.82,23.5177]
[1728321055512,6.7182,148.85,148.81,6.8198]
[1728321056524,6.7187,148.84,148.81,0.1]
[1728321057227,6.7191,148.83,148.81,0.1]
[1728321059142,6.7186,148.84,148.81,0.1]
[1728321063356,6.7182,148.85,148.81,8.16345667]
[1728321063722,6.719,148.83,148.81,0.1]
[1728321064073,6.7195,148.82,148.81,0.1]
[1728321064930,30.496384,148.82,148.81,0.1]
[1728321068848,71.720184,148.82,148.81,0.1]
[1728321070226,30.496784,148.81,148.8,500.0]
[1728321070427,50.496784,148.81,148.8,500.0]
[1728321072225,50.496784,148.81,148.8,493.8207]
[1728321072533,50.496784,148.81,148.8,392.83276745]
[1728321072844,50.496784,148.81,148.8,388.48536745]
[1728321074134,50.496784,148.81,148.8,381.82856745]
[1728321074737,57.4847675,148.81,148.8,381.82856745]
[1728321075132,57.4847675,148.81,148.8,373.85946745]
[1728321075456,57.4847675,148.81,148.8,369.90926745]
[1728321076847,57.4847675,148.81,148.8,289.2568349]
[1728321077027,57.4847675,148.81,148.8,284.5604349]
[1728321077228,57.4847675,148.81,148.8,279.6137349]
[1728321077834,57.4847675,148.81,148.8,268.5912349]
[1728321078229,57.4847675,148.81,148.8,263.3841349]
[1728321078553,57.4847675,148.81,148.8,257.3710349]
[1728321078755,57.4847675,148.81,148.8,252.0658349]
[1728321078979,57.4847675,148.81,148.8,242.9583349]
[1728321079247,57.4847675,148.81,148.8,238.8475349]
[1728321079446,57.4847675,148.81,148.8,231.0478349]
[1728321079651,57.4847675,148.81,148.8,227.2638349]
[1728321079953,57.4847675,148.81,148.8,219.5303349]
[1728321082266,57.4847675,148.81,148.8,214.3112349]
[1728321083157,57.4847675,148.81,148.8,208.8304349]
[1728321083343,57.4847675,148.81,148.8,203.3482349]
[1728321084545,57.4847675,148.81,148.8,198.2218349]
[1728321084747,57.4847675,148.81,148.8,193.0985349]
[1728321084933,63.8825513,148.81,148.8,76.48160235]
[1728321085138,63.8825513,148.81,148.8,62.25030235]
[1728321085476,63.8825513,148.81,148.8,46.66250235]
[1728321085954,63.8825513,148.81,148.8,36.33280235]
[1728321086153,63.8825513,148.81,148.8,14.02310235]
[1728321086451,63.8825513,148.81,148.8,1.65230235]
[1728321086656,63.8825513,148.81,148.8,2.35e-06]
[1728321087858,6.7231,148.74,148.73,0.83049]
[1728321091859,30.499984,148.74,148.73,0.83049]
[1728321094368,50.499984,148.74,148.73,0.83049]
[1728321098569,26.7231,148.74,148.73,0.83049]
[1728321101570,6.7231,148.74,148.73,0.83049]
[1728321107868,30.499984,148.74,148.73,0.83049]
[1728321108989,6.7231,148.74,148.73,0.83049]
[1728321110350,30.499984,148.74,148.73,0.83049]
[1728321110857,50.499984,148.74,148.73,0.83049]
[1728321112354,57.49026453,148.74,148.73,0.83049]
[1728321118164,57.49026453,148.74,148.73,9e-05]
[1728321119082,57.49026453,148.74,148.71,0.1]
[1728321119083,50.500884,148.72,148.71,9e-05]
[1728321119797,56.564384,148.72,148.71,9e-05]
[1728321119987,43.776884,148.71,148.62,15.3281]
[1728321120183,43.776884,148.67,148.62,15.3281]
[1728321120494,6.7273,148.65,148.62,15.3281]
[1728321123082,6.7267,148.66,148.62,22.0565]
[1728321123278,26.7264,148.67,148.63,6.728]
[1728321123989,6.727,148.66,148.62,38.8774]
[1728321124199,13.70982179,148.68,148.64,18.87668443]
[1728321124366,6.7261,148.68,148.64,18.87668443]
[1728321124563,6.7255,148.69,148.65,20.2216473]
[1728321124879,6.7255,148.69,148.65,18.87628443]
[1728321125084,6.7255,148.69,148.66,12.14938443]
[1728321125258,6.98254688,148.71,148.66,12.14938443]
[1728321125589,6.7241,148.72,148.68,34.81438443]
[1728321125783,6.725,148.7,148.68,15.9395]
[1728321126489,6.7245,148.71,148.68,15.9395]
[1728321126972,20.0,148.74,148.68,29.43392826]
[1728321127174,23.7880581,148.75,148.68,29.43392826]
[1728321127175,6.9810581,148.75,148.7,12.14938443]
[1728321127372,16.804,148.78,148.71,12.14938443]
[1728321127558,6.7218,148.77,148.73,6.7235]
[1728321127769,6.7218,148.77,148.72,13.49410108]
[1728321127770,13.7003152,148.78,148.75,12.14938443]
[1728321127963,6.7214,148.78,148.75,12.14938443]
[1728321128665,6.721,148.79,148.75,12.14938443]
[1728321128868,6.7221,148.77,148.74,16.0636]
[1728321129084,6.7226,148.75,148.74,16.0636]
[1728321129285,6.7226,148.75,148.7,35.04908443]
[1728321129890,6.7232,148.74,148.7,35.04908443]
[1728321130069,6.7232,148.74,148.7,28.32428443]
[1728321130378,16.8018,148.8,148.7,28.32428443]
[1728321130592,6.7223,148.76,148.71,6.7244]
[1728321130790,6.7235,148.74,148.7,32.9867]
[1728321131181,16.8037,148.78,148.7,32.9867]
[1728321131396,6.7236,148.73,148.7,16.1749]
[1728321132479,33.6024,148.8,148.67,16.8152]
[1728321132480,32.2697,148.76,148.67,16.8152]
[1728321132668,16.8108,148.72,148.62,23.3568]
[1728321132875,6.7273,148.65,148.62,16.6283]
[1728321133080,6.7268,148.66,148.62,16.6283]
[1728321134190,33.6202,148.72,148.62,16.6283]
[1728321134191,16.8153,148.68,148.62,16.6283]
[1728321134374,6.7284,148.63,148.61,0.1]
[1728321135692,6.7285,148.62,148.61,0.1]
[1728321135990,6.7281,148.63,148.61,0.1]
[1728321136308,6.7285,148.62,148.61,0.1]
[1728321140794,26.7285,148.62,148.61,0.1]
[1728321142177,50.505384,148.62,148.61,0.1]
[1728321143200,26.7285,148.62,148.61,0.1]
[1728321144774,6.7285,148.62,148.61,0.1]
[1728321153899,6.7285,148.62,148.58,0.83049]
[1728321153900,6.7299,148.59,148.58,0.83049]
[1728321154209,50.506784,148.59,148.58,9e-05]
[1728321155494,6.7299,148.59,148.58,9e-05]
[1728321156279,6.7298,148.6,148.58,9e-05]
[1728321156803,6.7295,148.6,148.58,9e-05]
[1728321156990,6.7291,148.61,148.58,9e-05]
[1728321157307,6.7295,148.6,148.58,9e-05]
[1728321157480,6.7299,148.59,148.58,9e-05]
[1728321157994,6.98805509,148.62,148.58,9e-05]
[1728321158208,6.7297,148.6,148.58,9e-05]
[1728321158585,6.7291,148.61,148.58,9e-05]
[1728321158802,13.71655509,148.62,148.58,9e-05]
[1728321159196,13.71655509,148.62,148.58,8.07635402]
[1728321159408,6.7285,148.62,148.58,8.07635402]
[1728321159806,6.7282,148.63,148.59,6.7298]
[1728321162509,6.7277,148.64,148.6,6.7294]
[1728321162718,6.98566546,148.65,148.58,1.34582058]
[1728321162888,6.98566546,148.65,148.59,6.7298]
[1728321162889,6.7282,148.63,148.59,6.7298]
[1728321163892,6.98566546,148.65,148.59,6.7298]
[1728321163893,6.7277,148.64,148.6,8.07483035]
[1728321164089,6.202,148.68,148.6,1.34573035]
[1728321164319,6.98541126,148.67,148.59,16.8244]
[1728321164692,6.7281,148.63,148.59,23.5542]
[1728321164888,6.7277,148.64,148.6,8.07511383]
[1728321165410,6.7277,148.64,148.6,6.7294]
[1728321165997,6.7269,148.66,148.62,6.7284]
[1728321166198,6.98541126,148.67,148.61,16.8222]
[1728321166391,6.7286,148.62,148.58,23.55539]
[1728321166590,23.80141126,148.67,148.58,23.55539]
[1728321166792,23.80141126,148.67,148.59,1.34572158]
[1728321166986,6.7281,148.63,148.59,6.7298]
[1728321167515,6.7277,148.64,148.6,6.7293]
[1728321167892,6.7284,148.63,148.59,6.7296]
[1728321168207,6.7273,148.65,148.6,6.7294]
[1728321168997,6.98541126,148.67,148.61,6.7289]
[1728321169221,6.98541126,148.67,148.61,8.07452288]
[1728321169222,6.7269,148.66,148.61,8.07452288]
[1728321169519,6.7276,148.65,148.61,6.7288]
[1728321169701,6.7276,148.65,148.62,1.34556309]